bitfinex/quotes_ETHUSD_20250908
["timestamp","ask_amount","ask_price","bid_price","bid_amount"]
[1757354177071,3.1094971,4315.0,4314.9,0.002]
[1757354177244,9.42294404,4315.0,4314.9,0.002]
[1757354177594,13.66879402,4315.0,4314.9,0.002]
[1757354178230,13.17556902,4315.0,4314.9,0.002]
[1757354178343,13.04719454,4315.0,4314.9,0.002]
[1757354179513,13.66838636,4315.0,4314.9,0.002]
[1757354180677,3.10955081,4314.9,4314.8,1e-08]
[1757354180878,5.75578329,4314.9,4314.8,1e-08]
[1757354181178,7.66382959,4314.9,4314.8,1e-08]
[1757354181380,8.15658692,4314.9,4314.8,1e-08]
[1757354186461,8.27757034,4314.9,4314.8,1e-08]
[1757354186972,9.66557034,4314.9,4314.8,1e-08]
[1757354187181,3.10976567,4314.5,4314.4,0.002]
[1757354187389,2.74421261,4314.5,4314.4,0.002]
[1757354187702,2.74421261,4314.5,4314.4,0.3036]
[1757354187703,6.83521261,4314.5,4314.4,0.3036]
[1757354187899,7.62721261,4314.5,4314.4,0.002]
[1757354189099,7.93031261,4314.5,4314.4,0.002]
[1757354189395,7.93331261,4314.5,4314.4,0.002]
[1757354189605,8.70078333,4314.5,4314.4,0.3036]
[1757354189789,8.70078333,4314.5,4314.4,0.002]
[1757354190473,10.62698333,4314.5,4314.4,0.002]
[1757354191569,6.53498333,4314.5,4314.4,0.002]
[1757354191769,11.09628333,4314.5,4314.4,0.002]
[1757354191970,4.60878333,4314.5,4314.4,0.002]
[1757354192178,4.60878333,4314.5,4314.4,0.3081]
[1757354192179,8.69678333,4314.5,4314.4,0.3081]
[1757354193618,8.69678333,4314.5,4314.4,0.002]
[1757354194620,8.99088333,4314.5,4314.4,0.002]
[1757354194832,10.61538333,4314.5,4314.4,0.002]
[1757354195447,6.52824973,4314.5,4314.4,0.002]
[1757354195721,10.61224973,4314.5,4314.4,0.002]
[1757354196424,11.08554973,4314.5,4314.4,0.002]
[1757354196780,8.68964973,4314.5,4314.4,0.3081]
[1757354196979,0.21382331,4314.5,4314.4,0.3081]
[1757354197199,0.21382331,4314.8,4314.4,1.9716]
[1757354197398,2.31768513,4314.7,4314.5,1.6635]
[1757354197620,6.39855495,4314.9,4314.4,0.3081]
[1757354197621,0.1152,4314.5,4314.4,0.002]
[1757354198019,0.9072,4314.5,4314.4,0.3081]
[1757354198211,2.43296567,4314.5,4314.4,1.9716]
[1757354198408,2.43296567,4314.5,4314.4,0.7644]
[1757354198718,4.20845319,4314.5,4314.4,0.002]
[1757354198926,3.91435319,4314.5,4314.4,0.002]
[1757354200097,4.20845319,4314.5,4314.4,0.002]
[1757354200409,6.04743168,4314.5,4314.4,0.002]
[1757354201399,6.52073168,4314.5,4314.4,0.002]
[1757354201935,6.04743168,4314.5,4314.4,0.002]
[1757354202531,10.12243168,4314.5,4314.4,0.002]
[1757354202855,10.12043168,4314.5,4314.4,0.002]
[1757354203733,4.12883168,4314.5,4314.4,0.002]
[1757354203935,8.20183168,4314.5,4314.4,0.002]
[1757354204524,8.49593168,4314.5,4314.4,0.002]
[1757354204731,10.59373168,4314.5,4314.4,0.002]
[1757354205176,10.72264146,4314.5,4314.4,0.002]
[1757354205843,11.21788784,4314.5,4314.4,0.002]
[1757354206174,2.31798057,4314.1,4314.0,0.002]
[1757354206339,8.04931073,4314.1,4314.0,0.002]
[1757354206538,10.44121073,4314.1,4314.0,0.002]
[1757354206733,10.9369162,4314.1,4314.0,0.002]
[1757354207366,10.72183978,4314.1,4314.0,0.002]
[1757354207566,10.5927439,4314.1,4314.0,0.002]
[1757354207972,10.3775841,4314.1,4314.0,0.002]
[1757354208286,3.11008804,4313.9,4313.8,1e-08]
[1757354208578,9.17124783,4313.9,4313.8,1e-08]
[1757354208773,12.0588533,4313.9,4313.8,1e-08]
[1757354208974,11.97277148,4313.9,4313.8,1e-08]
[1757354209181,11.97277148,4313.9,4312.8,0.025]
[1757354209182,0.792,4313.8,4312.8,0.025]
[1757354209341,5.20043693,4313.9,4313.1,0.4763]
[1757354209342,3.11046424,4313.2,4313.1,0.4763]
[1757354209539,7.17346424,4313.2,4313.1,0.7824]
[1757354210164,7.6037853,4313.2,4313.1,0.3261]
[1757354210674,7.6027853,4313.2,4313.1,0.3261]
[1757354211962,8.88900034,4313.2,4313.1,0.02]
[1757354212194,8.59490034,4313.2,4313.1,0.02]
[1757354212760,8.88900034,4313.2,4313.1,0.02]
[1757354212962,10.64246465,4313.2,4313.1,0.02]
[1757354213172,10.51350034,4313.2,4313.1,0.02]
[1757354214296,10.98680034,4313.2,4313.1,0.02]
[1757354214670,10.98680034,4313.2,4313.1,0.022]
[1757354217212,10.51350034,4313.2,4313.1,0.022]
[1757354217599,10.98680034,4313.2,4313.1,0.022]
[1757354219452,4.53290034,4313.2,4313.1,0.3281]
[1757354219587,8.58190034,4313.2,4313.1,0.3281]
[1757354220329,2.31846424,4313.2,4313.1,0.7844]
[1757354220533,1.779,4313.9,4313.1,1.9285]
[1757354220704,2.31826426,4313.6,4313.2,1.6004]
[1757354220920,2.31826426,4313.6,4313.1,0.6562]
[1757354220921,2.31826426,4313.6,4313.5,0.3061]
[1757354221125,3.11026426,4313.6,4313.5,0.7697]
[1757354221434,2.31826426,4313.6,4313.5,0.7697]
[1757354221728,2.31815506,4313.8,4313.1,0.3501]
[1757354221729,2.31846424,4313.2,4313.1,0.3501]
[1757354221906,3.11046424,4313.2,4313.1,1.118]
[1757354222504,3.11046424,4313.2,4313.1,0.6544]
[1757354225195,5.96914991,4313.2,4313.1,0.022]
[1757354225603,4.34634991,4313.2,4313.1,0.022]
[1757354226407,5.96914991,4313.2,4313.1,0.022]
[1757354226620,6.43794991,4313.2,4313.1,0.022]
[1757354226822,6.652441,4313.2,4313.1,0.022]
[1757354227246,6.86697048,4313.2,4313.1,0.022]
[1757354227420,6.86696987,4313.2,4313.1,1e-08]
[1757354230525,8.52916987,4313.2,4313.1,1e-08]
[1757354230837,6.7894842,4313.2,4313.1,0.76790001]
[1757354231165,6.36046424,4313.2,4313.1,0.76790001]
[1757354231851,3.11046424,4313.2,4313.1,0.76790001]
[1757354232020,7.15246424,4313.2,4313.1,0.76790001]
[1757354232225,7.15246424,4313.2,4313.1,1e-08]
[1757354232226,7.44066424,4313.2,4313.1,1e-08]
[1757354232419,7.44066424,4313.2,4312.6,1e-08]
[1757354232420,3.11073304,4312.7,4312.6,1e-08]
[1757354232623,7.5880104,4312.7,4312.6,1e-08]
[1757354232844,2.7480104,4312.7,4312.6,0.76790001]
[1757354233061,6.7970104,4312.7,4312.6,0.76790001]
[1757354233367,6.36773304,4312.7,4312.6,0.76790001]
[1757354233862,7.15973304,4312.7,4312.6,0.30430001]
[1757354235173,7.16073304,4312.7,4312.6,0.30430001]
[1757354235342,7.37555694,4312.7,4312.6,0.30430001]
[1757354235731,7.16073304,4312.7,4312.6,0.30430001]
[1757354235927,7.3755579,4312.7,4312.6,0.30430001]
[1757354236331,7.59043204,4312.7,4312.6,0.30430001]
[1757354236939,2.31866132,4312.9,4312.6,0.30430001]
[1757354236940,1.6228,4314.1,4312.6,1.85330001]
[1757354237273,0.792,4313.2,4312.7,4.73433]
[1757354237471,0.792,4313.2,4313.1,0.3043]
[1757354237633,2.31846424,4313.2,4313.1,0.3043]
[1757354237990,2.31840587,4313.4,4313.1,0.7679]
[1757354238131,2.31840587,4313.4,4313.1,0.3043]
[1757354238329,0.026,4313.8,4313.1,0.3043]
[1757354238330,2.31831303,4313.5,4313.2,0.4636]
[1757354238520,0.026,4313.8,4313.4,0.3043]
[1757354238723,0.026,4313.8,4313.5,1.549]
[1757354238959,2.34415509,4313.8,4313.5,1.549]
[1757354239164,0.026,4313.8,4313.7,0.3043]
[1757354239324,0.026,4313.8,4313.7,0.7679]
[1757354239325,2.34414177,4313.8,4313.7,0.7679]
[1757354239962,3.13614177,4313.8,4313.7,0.3043]
[1757354243833,0.792,4313.4,4313.0,0.4636]
[1757354244032,0.792,4313.4,4312.9,3.0]
[1757354244033,0.792,4313.6,4313.3,0.3043]
[1757354244229,0.792,4313.4,4313.3,0.3043]
[1757354244634,3.11035674,4313.4,4313.3,0.3043]
[1757354245272,3.11041049,4313.3,4313.2,0.69557556]
[1757354245465,3.22561049,4313.3,4313.2,0.69557556]
[1757354245762,3.11054057,4313.1,4312.7,3.0]
[1757354245942,0.792,4312.9,4312.8,2.47568686]
[1757354246168,0.792,4312.9,4312.8,6.24358686]
[1757354246498,4.43575544,4313.8,4312.8,5.35754555]
[1757354246499,0.026,4313.8,4312.8,5.35754555]
[1757354246658,3.11029184,4313.6,4312.9,0.4636]
[1757354246865,3.11024925,4313.6,4313.5,0.3043]
[1757354247059,3.11024925,4313.6,4313.5,0.7679]
[1757354248359,0.792,4313.6,4313.5,0.7679]
[1757354249103,3.11024925,4313.6,4313.5,0.7679]
[1757354249301,0.792,4313.6,4313.5,0.3043]
[1757354250223,0.792,4313.6,4313.5,0.7679]
[1757354251664,0.792,4313.6,4313.5,0.3043]
[1757354252296,3.110303,4313.5,4313.4,0.69557556]
[1757354252578,3.110303,4313.5,4312.6,1e-08]
[1757354252579,0.792,4312.7,4312.6,1e-08]
[1757354253507,3.11073304,4312.7,4312.6,1e-08]
[1757354253810,0.792,4312.7,4312.6,1e-08]
[1757354254196,3.11073304,4312.7,4312.6,1e-08]
[1757354254607,3.41673304,4312.7,4312.6,1e-08]
[1757354254764,5.95728608,4312.7,4312.6,1e-08]
[1757354254964,3.11094812,4312.3,4312.2,0.002]
[1757354255200,7.15194812,4312.3,4312.2,0.002]
[1757354255402,7.45794812,4312.3,4312.2,0.002]
[1757354255569,11.1539277,4312.3,4312.2,0.002]
[1757354256267,3.11116324,4311.9,4311.8,0.025]
[1757354256467,7.15316324,4311.9,4311.8,0.025]
[1757354256666,9.78494148,4311.9,4311.8,0.025]
[1757354256864,9.57056324,4311.9,4311.8,0.025]
[1757354257205,11.18824002,4311.9,4311.8,1e-08]
[1757354259014,11.18824002,4311.9,4310.8,0.027]
[1757354259210,11.18824002,4311.9,4309.8,0.025]
[1757354259211,0.792,4311.4,4309.8,0.025]
[1757354259366,0.792,4311.2,4309.8,0.025]
[1757354259563,3.41807795,4310.2,4309.8,0.025]
[1757354259777,7.46007795,4310.2,4309.8,0.025]
[1757354260004,9.57147795,4310.2,4309.8,0.025]
[1757354262915,1.78,4310.5,4309.8,0.025]
[1757354263108,0.4307,4311.3,4310.1,0.7822]
[1757354263109,2.31988561,4310.6,4310.1,0.7822]
[1757354263270,6.36288561,4310.6,4310.2,0.4556]
[1757354263475,0.116,4310.2,4310.1,0.3266]
[1757354264081,3.22807795,4310.2,4310.1,0.3266]
[1757354264281,0.908,4310.2,4310.1,0.02]
[1757354264487,3.22807795,4310.2,4310.1,0.02]
[1757354265112,0.908,4310.2,4310.1,0.02]
[1757354265311,3.22807795,4310.2,4310.1,0.02]
[1757354265797,0.908,4310.2,4310.1,0.02]
[1757354265990,3.22807795,4310.2,4310.1,0.02]
[1757354266376,3.53407795,4310.2,4310.1,0.02]
[1757354266577,7.57707795,4310.2,4310.1,0.02]
[1757354268341,10.56218292,4310.2,4310.1,0.02]
[1757354268537,8.14478292,4310.2,4310.1,0.02]
[1757354269039,7.15507795,4310.2,4310.1,0.02]
[1757354269347,1.6807,4311.3,4310.1,0.3266]
[1757354269642,0.792,4310.2,4310.1,0.7822]
[1757354270202,2.3195936,4311.1,4310.1,0.7822]
[1757354270203,6.36285211,4310.7,4310.1,0.7822]
[1757354270406,2.31985211,4310.7,4310.1,1.8128]
[1757354270792,0.792,4310.7,4310.1,1.8128]
[1757354270999,0.792,4310.7,4310.1,0.7822]
[1757354271397,0.792,4310.5,4310.1,0.7822]
[1757354271637,0.792,4310.6,4310.2,0.4556]
[1757354271930,0.792,4310.6,4310.5,0.3066]
[1757354272451,3.11186266,4310.6,4310.5,0.3066]
[1757354273005,0.792,4310.5,4310.1,0.02]
[1757354273449,0.792,4310.7,4310.4,0.3066]
[1757354273621,0.792,4310.5,4310.4,0.3066]
[1757354274205,3.1118154,4310.7,4310.4,0.3066]
[1757354274401,0.792,4310.7,4310.4,0.3066]
[1757354274705,0.001,4310.7,4310.5,0.4556]
[1757354274902,0.001,4310.7,4310.6,0.3066]
[1757354275160,0.792,4310.4,4310.1,0.022]
[1757354275343,0.792,4310.4,4310.3,0.3066]
[1757354276841,0.001,4310.7,4310.3,0.3066]
[1757354277166,0.001,4310.7,4310.3,0.7622]
[1757354277959,0.001,4310.7,4310.4,0.4556]
[1757354278159,0.001,4310.7,4310.3,0.3066]
[1757354278656,0.792,4310.6,4310.3,0.7622]
[1757354279096,0.001,4310.7,4310.3,0.7622]
[1757354280099,0.001,4310.7,4310.5,3.0]
[1757354280321,0.001,4310.7,4310.6,2.31986266]
[1757354280459,0.001,4310.7,4310.6,7.11266266]
[1757354280970,0.001,4310.7,4310.6,3.3001]
[1757354281195,0.001,4310.7,4310.6,7.3431]
[1757354281568,1.0811,4310.7,4310.6,3.0]
[1757354281893,0.793,4310.7,4310.6,3.0]
[1757354282095,3.40090884,4310.7,4310.6,3.0]
[1757354283383,0.793,4310.7,4310.6,3.0]
[1757354284716,0.793,4310.7,4310.6,3.3001]
[1757354285099,0.793,4310.7,4310.6,3.0]
[1757354285781,5.00010884,4310.7,4310.6,3.0]
[1757354285987,6.23611341,4310.7,4310.6,3.0]
[1757354286621,0.793,4310.7,4310.6,3.0]
[1757354287129,4.71200884,4310.7,4310.6,3.0]
[1757354287302,0.793,4310.7,4310.6,3.0]
[1757354288383,0.793,4310.7,4310.6,3.3001]
[1757354289780,0.001,4310.7,4310.6,3.7429]
[1757354290538,0.001,4310.7,4310.6,7.3421]
[1757354290822,0.001,4310.7,4310.6,3.0]
[1757354290989,0.001,4310.7,4310.6,7.042]
[1757354291185,0.001,4310.7,4310.6,3.0]
[1757354291386,2.60890884,4310.7,4310.6,7.042]
[1757354292031,0.2891,4310.7,4310.6,7.042]
[1757354292785,2.60890884,4310.7,4310.6,7.042]
[1757354292985,3.40090884,4310.7,4310.6,7.042]
[1757354293216,5.00010884,4310.7,4310.6,7.042]
[1757354293703,5.45830884,4310.7,4310.6,7.041]
[1757354294400,5.00010884,4310.7,4310.6,7.041]
[1757354294814,5.45830884,4310.7,4310.6,7.041]
[1757354294990,5.00010884,4310.7,4310.6,7.041]
[1757354295591,5.45830884,4310.7,4310.6,3.0]
[1757354295812,5.67319559,4310.7,4310.6,3.0]
[1757354296127,5.67319559,4310.7,4310.3,0.002]
[1757354296128,0.792,4310.4,4310.3,0.002]
[1757354296326,3.54178228,4310.4,4310.3,0.002]
[1757354296533,5.88728228,4310.4,4310.3,0.002]
[1757354296706,9.92828228,4310.4,4310.3,0.002]
[1757354297253,5.42908228,4310.4,4310.3,0.002]
[1757354297543,0.42981198,4310.4,4310.3,0.3021]
[1757354297690,0.42981198,4310.5,4310.3,0.3021]
[1757354297891,0.792,4310.4,4310.3,0.3021]
[1757354298333,0.792,4310.4,4310.3,3.7449]
[1757354298497,0.792,4310.4,4310.3,3.3021]
[1757354298828,0.792,4310.4,4310.3,0.002]
[1757354298829,3.4000703,4310.4,4310.3,0.002]
[1757354299042,6.02956365,4310.4,4310.3,3.002]
[1757354299249,6.45939193,4310.4,4310.3,0.002]
[1757354300729,6.00119193,4310.4,4310.3,0.002]
[1757354301803,6.45939193,4310.4,4310.3,0.002]
[1757354301995,4.11389193,4310.4,4310.3,0.002]
[1757354302311,6.45939193,4310.4,4310.3,0.002]
[1757354302910,6.00119193,4310.4,4310.3,0.002]
[1757354303110,4.40199193,4310.4,4310.3,0.002]
[1757354303540,4.11389193,4310.4,4310.3,0.002]
[1757354303706,3.54179858,4310.4,4310.3,0.3021]
[1757354304399,3.32688444,4310.4,4310.3,0.3021]
[1757354304625,3.1119703,4310.4,4310.3,0.3021]
[1757354304797,0.001,4310.7,4310.3,0.3021]
[1757354305137,0.001,4310.7,4310.4,0.4428]
[1757354305296,2.31991648,4310.5,4310.3,0.3021]
[1757354305502,0.001,4310.7,4310.4,3.4428]
[1757354305703,0.001,4310.7,4310.6,0.3001]
[1757354305999,3.11281079,4310.7,4310.6,0.3001]
[1757354308012,2.31991648,4310.5,4310.4,3.0]
[1757354308225,3.11191648,4310.5,4310.4,3.3001]
[1757354308855,0.792,4310.5,4310.4,3.3001]
[1757354309723,0.792,4310.5,4310.4,3.7429]
[1757354310140,0.792,4310.5,4310.4,3.3001]
[1757354312463,0.001,4310.7,4310.6,2.31986266]
[1757354312752,0.001,4310.7,4310.6,11.13986266]
[1757354312956,0.001,4310.7,4310.6,12.86426266]
[1757354316074,0.001,4310.7,4310.3,0.002]
[1757354316075,0.792,4310.6,4310.3,0.002]
[1757354316243,1.1037,4310.4,4310.3,4.041]
[1757354316570,3.0698,4310.4,4310.3,7.041]
[1757354316745,1.1037,4310.4,4310.3,7.041]
[1757354316941,0.792,4310.4,4310.3,7.041]
[1757354317147,0.792,4310.4,4310.3,7.328]
[1757354318070,0.792,4310.4,4310.3,7.041]
[1757354319133,0.792,4310.4,4310.3,3.002]
[1757354319332,2.6412,4310.4,4310.3,3.002]
[1757354319670,5.3897703,4310.4,4310.3,7.039]
[1757354321391,6.16083554,4310.4,4310.3,3.002]
[1757354322592,5.3897703,4310.4,4310.3,3.002]
[1757354322793,4.9611703,4310.4,4310.3,3.002]
[1757354323689,4.9611703,4310.4,4310.3,0.002]
[1757354324006,5.3897703,4310.4,4310.3,0.002]
[1757354326706,3.4236703,4310.4,4310.3,0.002]
[1757354327008,5.3897703,4310.4,4310.3,0.002]
[1757354327770,6.56443554,4310.4,4310.3,0.002]
[1757354336821,6.99406008,4310.4,4310.3,0.002]
[1757354337124,7.12293268,4310.4,4310.3,0.002]
[1757354339316,11.02806008,4310.4,4310.3,0.002]
[1757354339503,10.59946008,4310.4,4310.3,0.002]
[1757354340117,6.56546008,4310.4,4310.3,0.002]
[1757354340318,4.71626008,4310.4,4310.3,0.289]
[1757354340630,10.59843554,4310.4,4310.3,0.002]
[1757354341138,10.81435329,4310.4,4310.3,0.002]
[1757354341333,11.02896627,4310.4,4310.3,0.002]
[1757354341802,6.99496627,4310.4,4310.3,0.002]
[1757354342129,9.06156627,4310.4,4310.3,0.002]
[1757354342335,7.88688692,4310.4,4310.3,0.002]
[1757354342629,7.1459703,4310.4,4310.3,0.002]
[1757354344451,7.1459703,4310.4,4310.3,0.2921]
[1757354345147,7.1459703,4310.4,4310.3,0.002]
[1757354346257,7.4365703,4310.4,4310.3,0.002]
[1757354346422,8.9079703,4310.4,4310.3,0.002]
[1757354346627,8.9079703,4310.4,4310.1,0.022]
[1757354346628,2.32023944,4309.9,4309.8,0.001]
[1757354347028,2.32023944,4309.9,4309.8,0.2911]
[1757354349849,2.31990619,4310.6,4309.8,0.2911]
[1757354349850,0.001,4310.7,4309.8,1.6441]
[1757354350028,0.001,4310.7,4310.0,3.0]
[1757354350216,0.001,4310.7,4310.1,4.781]
[1757354350415,0.001,4310.7,4310.6,0.2901]
[1757354350710,0.793,4310.7,4310.6,0.2901]
[1757354350939,0.793,4310.7,4310.6,0.7248]
[1757354351123,3.11280884,4310.7,4310.6,0.7248]
[1757354351351,3.11280884,4310.7,4310.6,0.2901]
[1757354351988,3.11191648,4310.5,4310.1,1.781]
[1757354352134,3.11207795,4310.2,4310.1,8.813]
[1757354352337,0.792,4310.2,4310.1,9.1031]
[1757354352737,0.792,4310.2,4310.1,5.0711]
[1757354353654,0.792,4310.2,4310.1,5.5058]
[1757354353988,0.001,4310.7,4310.2,3.0]
[1757354354198,0.792,4310.6,4310.2,3.0]
[1757354354395,0.793,4310.7,4310.5,0.2901]
[1757354354553,3.11186266,4310.6,4310.5,0.2901]
[1757354354757,0.792,4310.6,4310.5,0.2901]
[1757354354976,0.792,4310.6,4310.5,0.7248]
[1757354355174,3.11186266,4310.6,4310.5,0.2901]
[1757354355603,3.11186266,4310.6,4310.5,7.031]
[1757354355949,4.87386266,4310.6,4310.5,3.0]
[1757354356697,5.30376266,4310.6,4310.5,3.0]
[1757354356991,5.92681167,4310.6,4310.5,3.0]
[1757354357739,3.11207795,4310.2,4310.1,1.781]
[1757354357976,5.30397795,4310.2,4310.1,1.781]
[1757354358360,3.11207795,4310.2,4310.1,1.781]
[1757354358560,3.11207795,4310.2,4310.1,2.0711]
[1757354360252,0.792,4310.2,4310.1,0.27824897]
[1757354360557,0.792,4310.2,4310.1,0.71294897]
[1757354360899,0.792,4310.2,4310.1,0.27824897]
[1757354361387,0.792,4310.1,4309.8,0.003]
[1757354361587,1.0826,4310.2,4310.0,3.0]
[1757354361922,3.1121708,4310.1,4310.0,4.029]
[1757354362248,5.3040708,4310.1,4310.0,4.029]
[1757354363049,5.3040708,4310.1,4309.8,0.003]
[1757354363050,2.32023944,4309.9,4309.8,0.003]
[1757354363260,2.32023944,4309.9,4309.8,7.032]
[1757354363576,2.61083944,4309.9,4309.8,3.003]
[1757354363755,2.61083944,4309.9,4309.8,7.032]
[1757354365398,4.08223944,4309.9,4309.8,3.003]
[1757354365612,6.06656875,4309.9,4309.8,0.003]
[1757354367285,5.63666875,4309.9,4309.8,0.003]
[1757354367874,0.792,4309.9,4309.8,0.2931]
[1757354368556,3.11223944,4309.9,4309.8,0.2931]
[1757354368796,0.792,4309.9,4309.8,0.2931]
[1757354368999,1.4714,4310.3,4309.8,0.7278]
[1757354369000,2.32006003,4310.3,4309.8,0.7278]
[1757354369184,0.001,4310.6,4310.0,3.0]
[1757354369389,2.3209117,4310.6,4310.5,0.2901]
[1757354369759,3.1129117,4310.6,4310.5,3.2901]
[1757354370725,0.001,4310.6,4310.5,3.2901]
[1757354371022,0.001,4310.6,4310.5,3.7248]
[1757354371165,0.001,4310.6,4310.5,4.5884]
[1757354371388,0.793,4310.6,4310.5,0.2901]
[1757354371678,0.001,4310.6,4310.5,7.027]
[1757354371898,0.793,4310.6,4310.5,7.027]
[1757354372268,3.11286266,4310.6,4310.5,7.027]
[1757354374806,5.62604893,4310.6,4310.5,7.026]
[1757354375304,4.87866266,4310.6,4310.5,7.026]
[1757354375805,4.87866266,4310.6,4310.5,7.3246]
[1757354375806,0.001,4310.6,4310.5,7.3246]
[1757354376308,0.793,4310.6,4310.5,7.3246]
[1757354377268,0.001,4310.6,4310.5,7.3246]
[1757354377476,0.001,4310.6,4310.5,7.7524]
[1757354379451,0.001,4310.6,4310.5,7.7514]
[1757354380256,2.32015696,4310.1,4309.9,4.025]
[1757354380468,2.32015696,4310.1,4309.5,1.781]
[1757354380469,3.11223944,4309.9,4309.5,1.781]
[1757354380621,3.11223944,4309.9,4309.8,4.028]
[1757354380815,3.83523944,4309.9,4309.8,7.028]
[1757354381015,5.31403944,4309.9,4309.8,7.028]
[1757354382898,5.31403944,4309.9,4309.8,3.003]
[1757354382899,6.12386322,4309.9,4309.8,3.003]
[1757354384547,5.68786322,4309.9,4309.8,3.003]
[1757354385190,4.20906322,4309.9,4309.8,3.003]
[1757354385738,5.68786322,4309.9,4309.8,7.027]
[1757354387181,5.68786322,4309.9,4309.8,0.003]
[1757354387391,6.12386322,4309.9,4309.8,0.003]
[1757354387591,5.68786322,4309.9,4309.8,0.003]
[1757354387796,6.12386322,4309.9,4309.8,0.003]
[1757354390990,3.92206322,4309.9,4309.8,0.003]
[1757354392078,5.68786322,4309.9,4309.8,0.003]
[1757354392269,6.12386322,4309.9,4309.8,0.003]
[1757354392470,0.792,4310.0,4309.8,0.3016]
[1757354392672,2.32001331,4310.4,4309.9,4.04520239]
[1757354392869,0.001,4310.7,4310.3,0.2986]
[1757354393079,0.001,4310.7,4310.3,4.3206]
[1757354393280,2.31991857,4310.5,4310.3,4.3206]
[1757354393493,0.116,4310.3,4309.8,0.003]
[1757354393668,2.31997494,4310.4,4310.2,0.2986]
[1757354393870,2.31997494,4310.4,4310.3,4.022]
[1757354394116,2.31992444,4310.5,4310.3,4.3206]
[1757354394261,0.792,4310.5,4310.3,4.3206]
[1757354394460,2.32087407,4310.6,4310.3,4.022]
[1757354394657,2.6069703,4310.4,4310.3,4.022]
[1757354394863,2.32015214,4310.1,4309.8,0.003]
[1757354395064,3.11215214,4310.1,4310.0,3.0]
[1757354395372,0.792,4310.1,4310.0,7.3206]
[1757354395685,0.792,4310.1,4310.0,7.3196]
[1757354397469,1.4788,4310.4,4310.0,4.021]
[1757354397701,3.11207795,4310.2,4310.1,3.0]
[1757354398007,0.792,4310.0,4309.8,0.003]
[1757354398214,3.11218561,4310.0,4309.9,7.021]
[1757354398511,3.11218561,4310.0,4309.9,4.021]
[1757354398670,0.792,4310.0,4309.9,7.021]
[1757354398875,3.11218561,4310.0,4309.9,7.021]
[1757354399111,0.792,4310.0,4309.9,7.021]
[1757354399907,0.792,4310.0,4309.9,3.0]
[1757354400109,3.11218561,4310.0,4309.9,7.3186]
[1757354400282,0.792,4310.0,4309.9,7.3186]
[1757354400614,0.001,4310.7,4310.0,3.0]
[1757354400818,0.001,4310.7,4309.9,1.03076]
[1757354400967,0.792,4310.4,4310.1,3.0]
[1757354401171,2.32023944,4309.9,4309.8,0.003]
[1757354401373,4.85593944,4309.9,4309.8,0.003]
[1757354401683,5.30643944,4309.9,4309.8,6.593]
[1757354401882,4.85593944,4309.9,4309.8,3.003]
[1757354402082,5.30643944,4309.9,4309.8,3.003]
[1757354402313,6.06909818,4309.9,4309.8,3.003]
[1757354403814,6.06909818,4309.9,4309.8,0.003]
[1757354403972,0.792,4309.9,4309.8,0.3078]
[1757354405017,0.792,4309.9,4309.8,0.003]
[1757354405254,0.792,4309.9,4309.8,7.022]
[1757354405572,0.792,4309.9,4309.8,7.3268]
[1757354405990,0.792,4309.9,4309.8,7.022]
[1757354406172,1.0883,4309.9,4309.8,7.022]
[1757354406404,4.85593944,4309.9,4309.8,7.022]
[1757354406601,2.5357,4309.9,4309.8,3.003]
[1757354406785,1.0883,4309.9,4309.8,7.022]
[1757354407315,3.40853944,4309.9,4309.8,7.022]
[1757354407484,4.85593944,4309.9,4309.8,7.022]
[1757354407687,5.7172279,4309.9,4309.8,7.022]
[1757354408116,5.7172279,4309.9,4309.8,3.003]
[1757354408477,3.5230279,4309.9,4309.8,3.003]
[1757354408874,3.8193279,4309.9,4309.8,3.003]
[1757354409107,5.2667279,4309.9,4309.8,3.003]
[1757354409575,5.7172279,4309.9,4309.8,3.003]
[1757354411540,5.7172279,4309.9,4309.8,0.003]
[1757354414325,5.9321266,4309.9,4309.8,0.003]
[1757354414819,9.9491266,4309.9,4309.8,0.003]
[1757354415017,10.16401912,4309.9,4309.8,0.003]
[1757354415354,10.16401912,4309.9,4309.3,0.002]
[1757354415355,3.11250865,4309.4,4309.3,0.002]
[1757354415525,8.10259444,4309.4,4309.3,0.002]
[1757354415696,10.29679444,4309.4,4309.3,0.002]
[1757354416723,6.27979444,4309.4,4309.3,0.002]
[1757354416916,10.29579444,4309.4,4309.3,0.002]
[1757354417226,3.54229987,4309.4,4309.3,0.3068]
[1757354417405,1.4474,4310.0,4309.3,0.765]
[1757354417605,2.32045896,4309.5,4309.3,0.765]
[1757354417807,0.792,4309.4,4309.3,0.765]
[1757354418181,3.11250865,4309.4,4309.3,0.002]
[1757354418590,0.792,4309.4,4309.3,0.3068]
[1757354418825,0.792,4309.4,4309.3,0.765]
[1757354419139,0.792,4309.6,4309.3,0.765]
[1757354419326,3.11244378,4309.6,4309.3,0.765]
[1757354419625,0.792,4309.7,4309.3,0.765]
[1757354420438,0.792,4309.9,4309.3,0.3068]
[1757354420642,0.792,4309.6,4309.3,0.3068]
[1757354420999,0.792,4309.7,4309.4,0.4582]
[1757354421246,3.11235288,4309.7,4309.6,0.3048]
[1757354421804,3.11235288,4309.7,4309.3,0.002]